[Event "Early-Titled-Tuesday-Blitz-August-29-2023"]
[Site "Chess.com"]
[Date "2023.08.29"]
[Round "1"]
[White "ShahMatKanal"]
[Black "SchmakAttack"]
[Result "0-1"]
[WhiteElo "2428"]
[BlackElo "2807"]
[TimeControl "180+1"]
[EndTime "8:07:30 PDT"]
[Termination "SchmakAttack won on time"]

1. d4 {[%clk 0:03:00.9]} 1... Nf6 {[%clk 0:02:59.2]} 2. c4 {[%clk 0:03:00.5]}
2... e6 {[%clk 0:02:59.2]} 3. Nc3 {[%clk 0:03:00.7]} 3... Bb4 {[%clk 0:02:58.9]}
4. e3 {[%clk 0:03:01.1]} 4... O-O {[%clk 0:02:57.2]} 5. Ne2 {[%clk 0:03:01.2]}
5... d5 {[%clk 0:02:55.6]} 6. a3 {[%clk 0:03:01.1]} 6... Be7 {[%clk 0:02:55.7]}
7. Nf4 {[%clk 0:02:59.1]} 7... dxc4 {[%clk 0:02:36.4]} 8. Bxc4 {[%clk 0:03:00]}
8... a6 {[%clk 0:02:25.5]} 9. O-O {[%clk 0:02:58.9]} 9... b5 {[%clk 0:02:24.7]}
10. Be2 {[%clk 0:02:58.9]} 10... Bb7 {[%clk 0:02:23.9]} 11. b4 {[%clk
0:02:45.1]} 11... Nbd7 {[%clk 0:02:15.5]} 12. Rb1 {[%clk 0:02:37.9]} 12... e5
{[%clk 0:02:08.5]} 13. Nd3 {[%clk 0:02:29.4]} 13... exd4 {[%clk 0:02:06.9]} 14.
exd4 {[%clk 0:02:30.3]} 14... Ne4 {[%clk 0:01:44.3]} 15. Nxe4 {[%clk 0:01:58.6]}
15... Bxe4 {[%clk 0:01:45.2]} 16. Rb2 {[%clk 0:01:47]} 16... Nb6 {[%clk
0:01:35.9]} 17. Nc5 {[%clk 0:01:45.2]} 17... Bd5 {[%clk 0:01:36.1]} 18. Be3
{[%clk 0:01:42.8]} 18... Nc4 {[%clk 0:01:31.3]} 19. Bxc4 {[%clk 0:01:42.7]}
19... Bxc4 {[%clk 0:01:32.2]} 20. Re1 {[%clk 0:01:43]} 20... Re8 {[%clk
0:01:28.2]} 21. Rd2 {[%clk 0:01:41.6]} 21... Qd5 {[%clk 0:01:24.6]} 22. Bf4
{[%clk 0:01:36.3]} 22... Bd6 {[%clk 0:01:24.2]} 23. Rxe8+ {[%clk 0:01:29.2]}
23... Rxe8 {[%clk 0:01:25.1]} 24. Be3 {[%clk 0:01:26.8]} 24... h5 {[%clk
0:01:19.2]} 25. Nxa6 {[%clk 0:01:23.4]} 25... Ra8 {[%clk 0:01:14.1]} 26. Nc5
{[%clk 0:01:19.1]} 26... Rxa3 {[%clk 0:01:14.3]} 27. h3 {[%clk 0:01:03]} 27...
g6 {[%clk 0:01:09.4]} 28. Qe1 {[%clk 0:00:56.2]} 28... Kg7 {[%clk 0:01:03]} 29.
Rd1 {[%clk 0:00:55.1]} 29... Ra8 {[%clk 0:00:56.2]} 30. Ra1 {[%clk 0:00:53.9]}
30... Re8 {[%clk 0:00:56.1]} 31. Bh6+ {[%clk 0:00:49.7]} 31... Kxh6 {[%clk
0:00:55.9]} 32. Qxe8 {[%clk 0:00:49.9]} 32... Qxd4 {[%clk 0:00:55.9]} 33. Re1
{[%clk 0:00:41.8]} 33... Kg7 {[%clk 0:00:51.5]} 34. Nd7 {[%clk 0:00:33.8]} 34...
Bxb4 {[%clk 0:00:45.7]} 35. Rc1 {[%clk 0:00:14.9]} 35... Bd6 {[%clk 0:00:37.7]}
36. g3 {[%clk 0:00:13.8]} 36... h4 {[%clk 0:00:29.4]} 37. gxh4 {[%clk
0:00:12.1]} 37... Qf4 {[%clk 0:00:29.4]} 38. Rxc4 {[%clk 0:00:09.5]} 38... bxc4
{[%clk 0:00:21]} 39. h5 {[%clk 0:00:10]} 39... gxh5 {[%clk 0:00:20.9]} 40. Qd8
{[%clk 0:00:03.3]} 40... Qh2+ {[%clk 0:00:20.2]} 41. Kf1 {[%clk 0:00:03.3]}
41... Qxh3+ {[%clk 0:00:21.1]} 42. Ke2 {[%clk 0:00:03.2]} 42... Qe6+ {[%clk
0:00:21.8]} 43. Kf3 {[%clk 0:00:02.5]} 43... Qf5+ {[%clk 0:00:19.4]} 44. Ke3
{[%clk 0:00:02.4]} 44... c3 {[%clk 0:00:19.7]} 0-1

[Event "Early-Titled-Tuesday-Blitz-August-29-2023"]
[Site "Chess.com"]
[Date "2023.08.29"]
[Round "1"]
[White "vladgoncharov"]
[Black "LUISMIGUELOV"]
[Result "1-0"]
[WhiteElo "2565"]
[BlackElo "2127"]
[TimeControl "180+1"]
[EndTime "8:07:30 PDT"]
[Termination "vladgoncharov won on time"]

1. d4 {[%clk 0:02:56.5]} 1... c6 {[%clk 0:03:00.9]} 2. c4 {[%clk 0:02:45.6]}
2... d5 {[%clk 0:03:01.1]} 3. Nf3 {[%clk 0:02:44.9]} 3... Nf6 {[%clk 0:03:01.1]}
4. e3 {[%clk 0:02:43.9]} 4... Bf5 {[%clk 0:02:57.2]} 5. cxd5 {[%clk 0:02:38.2]}
5... Bxb1 {[%clk 0:02:53.6]} 6. Rxb1 {[%clk 0:02:37]} 6... Qxd5 {[%clk
0:02:53.7]} 7. a3 {[%clk 0:02:30.9]} 7... e6 {[%clk 0:02:51.6]} 8. Be2 {[%clk
0:02:25.9]} 8... Nbd7 {[%clk 0:02:50.4]} 9. O-O {[%clk 0:02:25.4]} 9... Bd6
{[%clk 0:02:39.4]} 10. Qc2 {[%clk 0:02:17.5]} 10... O-O {[%clk 0:02:34.1]} 11.
b4 {[%clk 0:02:13.4]} 11... Rac8 {[%clk 0:02:16.7]} 12. Bd3 {[%clk 0:02:03.3]}
12... Qh5 {[%clk 0:02:15.2]} 13. h3 {[%clk 0:02:01.2]} 13... e5 {[%clk
0:02:10.7]} 14. Bf5 {[%clk 0:01:51.4]} 14... exd4 {[%clk 0:02:03.5]} 15. exd4
{[%clk 0:01:49.4]} 15... g6 {[%clk 0:01:39.6]} 16. Bd3 {[%clk 0:01:34.5]} 16...
Rfe8 {[%clk 0:01:35.2]} 17. Bd2 {[%clk 0:01:25.5]} 17... Nd5 {[%clk 0:01:33.2]}
18. Rbe1 {[%clk 0:01:23.7]} 18... Nf4 {[%clk 0:01:25]} 19. Bxf4 {[%clk
0:00:37.1]} 19... Bxf4 {[%clk 0:01:23.9]} 20. Bc4 {[%clk 0:00:36.2]} 20... Nb6
{[%clk 0:01:19.7]} 21. Bb3 {[%clk 0:00:34.4]} 21... Nd5 {[%clk 0:01:17.8]} 22.
Re4 {[%clk 0:00:30.7]} 22... Qf5 {[%clk 0:01:10.7]} 23. Rfe1 {[%clk 0:00:25.4]}
23... Rxe4 {[%clk 0:01:09.5]} 24. Rxe4 {[%clk 0:00:23.3]} 24... Bd6 {[%clk
0:00:55.6]} 25. Nh4 {[%clk 0:00:14.3]} 25... Qf6 {[%clk 0:00:48.7]} 26. Bxd5
{[%clk 0:00:13.8]} 26... Rd8 {[%clk 0:00:36.6]} 27. Bb3 {[%clk 0:00:12.9]} 27...
Be7 {[%clk 0:00:35.3]} 28. Nf3 {[%clk 0:00:11]} 28... Bd6 {[%clk 0:00:33.5]} 29.
Qe2 {[%clk 0:00:10.5]} 29... Bc7 {[%clk 0:00:31.9]} 30. g3 {[%clk 0:00:10.7]}
30... Kg7 {[%clk 0:00:25.2]} 31. Kg2 {[%clk 0:00:10.5]} 31... a5 {[%clk
0:00:23.5]} 32. Re7 {[%clk 0:00:10.4]} 32... axb4 {[%clk 0:00:09.2]} 33. Rxf7+
{[%clk 0:00:09.6]} 33... Qxf7 {[%clk 0:00:08.7]} 34. Bxf7 {[%clk 0:00:09.3]}
34... Kxf7 {[%clk 0:00:09.1]} 35. axb4 {[%clk 0:00:09.1]} 35... Rd7 {[%clk
0:00:08.2]} 36. Ng5+ {[%clk 0:00:07.9]} 36... Kg7 {[%clk 0:00:06.9]} 37. h4
{[%clk 0:00:08]} 37... h6 {[%clk 0:00:06.4]} 38. Ne6+ {[%clk 0:00:07.5]} 38...
Kh7 {[%clk 0:00:05.9]} 39. Qe4 {[%clk 0:00:06.6]} 1-0

[Event "Early-Titled-Tuesday-Blitz-August-29-2023"]
[Site "Chess.com"]
[Date "2023.08.29"]
[Round "1"]
[White "Lady_Nika"]
[Black "mbojan"]
[Result "0-1"]
[WhiteElo "2469"]
[BlackElo "2890"]
[TimeControl "180+1"]
[EndTime "8:07:32 PDT"]
[Termination "mbojan won by resignation"]

1. e4 {[%clk 0:02:58.6]} 1... g6 {[%clk 0:02:57.8]} 2. d4 {[%clk 0:02:58.4]}
2... Nf6 {[%clk 0:02:57.7]} 3. f3 {[%clk 0:02:57.4]} 3... d5 {[%clk 0:02:56.2]}
4. e5 {[%clk 0:02:57.3]} 4... Nh5 {[%clk 0:02:56.3]} 5. Be3 {[%clk 0:02:56.1]}
5... c5 {[%clk 0:02:56.4]} 6. c3 {[%clk 0:02:55.3]} 6... Nc6 {[%clk 0:02:56.1]}
7. Bb5 {[%clk 0:02:53.6]} 7... f6 {[%clk 0:02:54.8]} 8. f4 {[%clk 0:02:39.5]}
8... cxd4 {[%clk 0:02:52.6]} 9. cxd4 {[%clk 0:02:37.7]} 9... Bh6 {[%clk
0:02:52.1]} 10. Ne2 {[%clk 0:02:35.2]} 10... O-O {[%clk 0:02:41.2]} 11. Bxc6
{[%clk 0:02:33.2]} 11... bxc6 {[%clk 0:02:41]} 12. O-O {[%clk 0:02:33.3]} 12...
Bg4 {[%clk 0:02:35.2]} 13. Nbc3 {[%clk 0:02:32.8]} 13... fxe5 {[%clk 0:02:24]}
14. dxe5 {[%clk 0:02:29.8]} 14... Bxf4 {[%clk 0:02:17.2]} 15. Bd4 {[%clk
0:02:22.9]} 15... e6 {[%clk 0:01:53.1]} 16. Qa4 {[%clk 0:02:22.4]} 16... Qh4
{[%clk 0:01:48.8]} 17. Nxf4 {[%clk 0:02:04.5]} 17... Nxf4 {[%clk 0:01:48.1]} 18.
Bc5 {[%clk 0:02:03.5]} 18... Be2 {[%clk 0:01:18.2]} 19. Bxf8 {[%clk 0:01:59.8]}
19... Bxf1 {[%clk 0:01:17.5]} 20. Rxf1 {[%clk 0:01:56.1]} 20... Ne2+ {[%clk
0:01:12]} 21. Kh1 {[%clk 0:01:47.8]} 21... Ng3+ {[%clk 0:01:09.6]} 22. Kg1
{[%clk 0:01:46.6]} 22... Qxa4 {[%clk 0:01:09.8]} 23. Nxa4 {[%clk 0:01:46.4]}
23... Nxf1 {[%clk 0:00:56.5]} 24. Bh6 {[%clk 0:01:45.8]} 24... Nxh2 {[%clk
0:00:39.7]} 25. Kxh2 {[%clk 0:01:44.4]} 25... Rb8 {[%clk 0:00:40.3]} 26. b3
{[%clk 0:01:40.9]} 26... Rb4 {[%clk 0:00:39.8]} 27. Nc5 {[%clk 0:01:40.8]} 27...
Kf7 {[%clk 0:00:39.9]} 28. Kg3 {[%clk 0:01:39.7]} 28... Rd4 {[%clk 0:00:39.6]}
29. Be3 {[%clk 0:01:37]} 29... Rd1 {[%clk 0:00:39.5]} 30. Nb7 {[%clk 0:01:35.6]}
30... Ra1 {[%clk 0:00:38.5]} 31. a4 {[%clk 0:01:28.5]} 31... Rb1 {[%clk
0:00:35.6]} 32. Nd8+ {[%clk 0:01:28.5]} 32... Ke8 {[%clk 0:00:33.6]} 33. Nxe6
{[%clk 0:01:25.5]} 33... Rxb3 {[%clk 0:00:33.7]} 34. Kf3 {[%clk 0:01:25.6]}
34... Ra3 {[%clk 0:00:31.2]} 35. g4 {[%clk 0:01:08.6]} 35... Rxa4 {[%clk
0:00:27.5]} 36. Ng5 {[%clk 0:01:07.2]} 36... h6 {[%clk 0:00:25.5]} 37. Ne6
{[%clk 0:01:03]} 37... g5 {[%clk 0:00:25.5]} 38. Ng7+ {[%clk 0:00:55.5]} 38...
Kf7 {[%clk 0:00:22.9]} 39. Nf5 {[%clk 0:00:54.7]} 39... Ke6 {[%clk 0:00:23.5]}
40. Bd4 {[%clk 0:00:52.3]} 40... a5 {[%clk 0:00:19.3]} 41. Ke3 {[%clk
0:00:50.4]} 41... c5 {[%clk 0:00:14.8]} 42. Ng7+ {[%clk 0:00:49.7]} 42... Kd7
{[%clk 0:00:08.3]} 43. e6+ {[%clk 0:00:49.2]} 43... Kd6 {[%clk 0:00:09]} 44.
Be5+ {[%clk 0:00:46.7]} 44... Kxe5 {[%clk 0:00:09.2]} 45. e7 {[%clk 0:00:46.6]}
45... Re4+ {[%clk 0:00:10]} 46. Kd3 {[%clk 0:00:42.6]} 46... Kf4 {[%clk
0:00:07.4]} 47. Nh5+ {[%clk 0:00:41.2]} 47... Kf3 {[%clk 0:00:05.6]} 48. Nf6
{[%clk 0:00:39.7]} 48... Rxe7 {[%clk 0:00:05.7]} 49. Nxd5 {[%clk 0:00:40]} 49...
Rd7 {[%clk 0:00:05.8]} 50. Kc4 {[%clk 0:00:40.4]} 50... Rxd5 {[%clk 0:00:06.5]}
0-1

[Event "Early-Titled-Tuesday-Blitz-August-29-2023"]
[Site "Chess.com"]
[Date "2023.08.29"]
[Round "1"]
[White "jcibarra"]
[Black "Mindhunter08"]
[Result "1-0"]
[WhiteElo "2880"]
[BlackElo "2463"]
[TimeControl "180+1"]
[EndTime "8:07:35 PDT"]
[Termination "jcibarra won by checkmate"]

1. e4 {[%clk 0:03:00.9]} 1... e5 {[%clk 0:02:59.2]} 2. Nf3 {[%clk 0:03:00.7]}
2... Nc6 {[%clk 0:02:57.8]} 3. Bb5 {[%clk 0:03:00.2]} 3... a6 {[%clk 0:02:53.6]}
4. Bxc6 {[%clk 0:02:59.9]} 4... dxc6 {[%clk 0:02:54.5]} 5. O-O {[%clk
0:02:59.9]} 5... f6 {[%clk 0:02:49.7]} 6. d4 {[%clk 0:02:59.2]} 6... Bg4 {[%clk
0:02:45.2]} 7. c3 {[%clk 0:02:57.4]} 7... Bd6 {[%clk 0:02:44.2]} 8. Nbd2 {[%clk
0:02:56.5]} 8... Ne7 {[%clk 0:02:40]} 9. h3 {[%clk 0:02:56.6]} 9... Bh5 {[%clk
0:02:38.5]} 10. Nc4 {[%clk 0:02:53.5]} 10... b5 {[%clk 0:02:26.1]} 11. dxe5
{[%clk 0:02:31.4]} 11... bxc4 {[%clk 0:02:10.5]} 12. exd6 {[%clk 0:02:30.9]}
12... cxd6 {[%clk 0:02:07.4]} 13. Qe2 {[%clk 0:02:27.1]} 13... Qd7 {[%clk
0:01:59.9]} 14. Rd1 {[%clk 0:02:24.9]} 14... Qe6 {[%clk 0:01:47.7]} 15. Bf4
{[%clk 0:02:19.1]} 15... Rd8 {[%clk 0:01:43.9]} 16. Qe3 {[%clk 0:02:07.6]} 16...
O-O {[%clk 0:01:32.8]} 17. Rd2 {[%clk 0:01:53.3]} 17... Ng6 {[%clk 0:01:20.2]}
18. Nd4 {[%clk 0:01:45.6]} 18... Qd7 {[%clk 0:01:06.6]} 19. Nf5 {[%clk 0:01:39]}
19... d5 {[%clk 0:00:37]} 20. g4 {[%clk 0:01:28]} 20... Nxf4 {[%clk 0:00:35.6]}
21. Qxf4 {[%clk 0:01:26.7]} 21... Bf7 {[%clk 0:00:33]} 22. Re1 {[%clk 0:01:20]}
22... Rfe8 {[%clk 0:00:32]} 23. e5 {[%clk 0:01:19.2]} 23... fxe5 {[%clk
0:00:26.4]} 24. Rxe5 {[%clk 0:01:20.1]} 24... Bg6 {[%clk 0:00:24]} 25. Rde2
{[%clk 0:00:58.6]} 25... Bxf5 {[%clk 0:00:12.1]} 26. gxf5 {[%clk 0:00:58.5]}
26... Qf7 {[%clk 0:00:10.2]} 27. Re6 {[%clk 0:00:49.1]} 27... Rxe6 {[%clk
0:00:08]} 28. Rxe6 {[%clk 0:00:50]} 28... Re8 {[%clk 0:00:08.5]} 29. Rxc6 {[%clk
0:00:46.1]} 29... Qh5 {[%clk 0:00:05.1]} 30. Rxa6 {[%clk 0:00:35.3]} 30... Re1+
{[%clk 0:00:03.9]} 31. Kg2 {[%clk 0:00:34.7]} 31... Qe8 {[%clk 0:00:02.7]} 32.
Rb6 {[%clk 0:00:20.7]} 32... Kf7 {[%clk 0:00:02.1]} 33. Rb7+ {[%clk 0:00:18.6]}
33... Re7 {[%clk 0:00:02.3]} 34. Rxe7+ {[%clk 0:00:14.1]} 34... Qxe7 {[%clk
0:00:03.2]} 35. a4 {[%clk 0:00:13.8]} 35... Qa7 {[%clk 0:00:03.3]} 36. Qe5
{[%clk 0:00:12.4]} 36... Qb7 {[%clk 0:00:03.8]} 37. Qe6+ {[%clk 0:00:10.8]}
37... Kf8 {[%clk 0:00:04]} 38. f6 {[%clk 0:00:11.2]} 38... d4+ {[%clk
0:00:04.1]} 39. Kg1 {[%clk 0:00:08.9]} 39... d3 {[%clk 0:00:03.3]} 40. Qd6+
{[%clk 0:00:05.1]} 40... Kf7 {[%clk 0:00:02.1]} 41. fxg7 {[%clk 0:00:03.5]}
41... Kg8 {[%clk 0:00:02.7]} 42. Qf8# {[%clk 0:00:02.5]} 1-0

[Event "Early-Titled-Tuesday-Blitz-August-29-2023"]
[Site "Chess.com"]
[Date "2023.08.29"]
[Round "1"]
[White "KevinGeorgeMicheal"]
[Black "Ramosha"]
[Result "0-1"]
[WhiteElo "2102"]
[BlackElo "2561"]
[TimeControl "180+1"]
[EndTime "8:07:35 PDT"]
[Termination "Ramosha won by checkmate"]

1. b3 {[%clk 0:02:56.2]} 1... c6 {[%clk 0:03:00]} 2. Bb2 {[%clk 0:02:55.9]} 2...
Nf6 {[%clk 0:02:17.6]} 3. e3 {[%clk 0:02:45.4]} 3... g6 {[%clk 0:02:15.8]} 4. c4
{[%clk 0:02:30.4]} 4... Bg7 {[%clk 0:02:15.4]} 5. g3 {[%clk 0:02:28.5]} 5... O-O
{[%clk 0:02:14.8]} 6. Bg2 {[%clk 0:02:28.4]} 6... Re8 {[%clk 0:02:15.3]} 7. Ne2
{[%clk 0:02:27.9]} 7... e5 {[%clk 0:02:15]} 8. O-O {[%clk 0:02:27.3]} 8... d5
{[%clk 0:02:12.9]} 9. d3 {[%clk 0:02:26.2]} 9... Bf5 {[%clk 0:02:11.6]} 10. Nbc3
{[%clk 0:02:23.2]} 10... dxc4 {[%clk 0:02:09]} 11. dxc4 {[%clk 0:02:22.6]} 11...
Nbd7 {[%clk 0:02:08.5]} 12. Ba3 {[%clk 0:02:13.9]} 12... Qa5 {[%clk 0:02:07.4]}
13. Qc1 {[%clk 0:02:10.2]} 13... Rad8 {[%clk 0:02:04.5]} 14. Rd1 {[%clk
0:02:06.8]} 14... Nf8 {[%clk 0:02:02.5]} 15. Bd6 {[%clk 0:02:00.8]} 15... e4
{[%clk 0:01:55.8]} 16. c5 {[%clk 0:01:53.3]} 16... Ne6 {[%clk 0:01:49.1]} 17. a3
{[%clk 0:01:47.8]} 17... Rd7 {[%clk 0:01:47.3]} 18. b4 {[%clk 0:01:46.4]} 18...
Qd8 {[%clk 0:01:44.7]} 19. h3 {[%clk 0:01:35.9]} 19... h5 {[%clk 0:01:31.5]} 20.
Qc2 {[%clk 0:01:27]} 20... Nc7 {[%clk 0:01:27.3]} 21. Nd4 {[%clk 0:01:23.5]}
21... Nfd5 {[%clk 0:01:23]} 22. Nxd5 {[%clk 0:01:13.7]} 22... Nxd5 {[%clk
0:01:23.9]} 23. Rac1 {[%clk 0:01:12]} 23... Qf6 {[%clk 0:01:20.5]} 24. Qe2
{[%clk 0:01:04.4]} 24... Rdd8 {[%clk 0:01:16]} 25. Kh2 {[%clk 0:00:57]} 25...
Bc8 {[%clk 0:01:15.5]} 26. Qc2 {[%clk 0:00:50]} 26... h4 {[%clk 0:01:12.4]} 27.
Bxe4 {[%clk 0:00:40.3]} 27... Rxe4 {[%clk 0:01:11.3]} 28. Qxe4 {[%clk 0:00:39]}
28... Qxf2+ {[%clk 0:01:11.9]} 29. Qg2 {[%clk 0:00:32.7]} 29... hxg3+ {[%clk
0:01:12]} 30. Bxg3 {[%clk 0:00:29]} 30... Qxg2+ {[%clk 0:01:12.9]} 31. Kxg2
{[%clk 0:00:26.6]} 31... Nxe3+ {[%clk 0:01:13.8]} 32. Kf3 {[%clk 0:00:16.7]}
32... Nxd1 {[%clk 0:01:14.7]} 33. Rxd1 {[%clk 0:00:16.5]} 33... Rxd4 {[%clk
0:01:14.5]} 34. Re1 {[%clk 0:00:15.9]} 34... Be6 {[%clk 0:01:14.1]} 35. Be5
{[%clk 0:00:15.9]} 35... Bxe5 {[%clk 0:01:13.2]} 36. Rxe5 {[%clk 0:00:16.3]}
36... Rd3+ {[%clk 0:01:14.1]} 37. Kf4 {[%clk 0:00:14.9]} 37... Rxh3 {[%clk
0:01:15]} 38. Kg5 {[%clk 0:00:15.1]} 38... Kg7 {[%clk 0:01:15.3]} 39. Re1 {[%clk
0:00:15.2]} 39... Rxa3 {[%clk 0:01:15.1]} 40. Kf4 {[%clk 0:00:15.3]} 40... Ra4
{[%clk 0:01:14.6]} 41. Re4 {[%clk 0:00:14.9]} 41... a5 {[%clk 0:01:15.2]} 42.
bxa5 {[%clk 0:00:13.4]} 42... Rxa5 {[%clk 0:01:16.1]} 43. Rb4 {[%clk 0:00:13.9]}
43... Rxc5 {[%clk 0:01:16.2]} 44. Rxb7 {[%clk 0:00:14.6]} 44... g5+ {[%clk
0:01:16.3]} 45. Ke3 {[%clk 0:00:14.5]} 45... Kg6 {[%clk 0:01:16.2]} 46. Kd4
{[%clk 0:00:15.1]} 46... Rd5+ {[%clk 0:01:15.9]} 47. Ke4 {[%clk 0:00:14.5]}
47... f5+ {[%clk 0:01:15.8]} 48. Ke3 {[%clk 0:00:15]} 48... Kf6 {[%clk
0:01:15.7]} 49. Kf3 {[%clk 0:00:13.9]} 49... c5 {[%clk 0:01:15.9]} 50. Ke3
{[%clk 0:00:13.8]} 50... f4+ {[%clk 0:01:15.9]} 51. Ke4 {[%clk 0:00:13.5]} 51...
Rd4+ {[%clk 0:01:16]} 52. Kf3 {[%clk 0:00:12.8]} 52... g4+ {[%clk 0:01:16.4]}
53. Kf2 {[%clk 0:00:12.3]} 53... Rd2+ {[%clk 0:01:16.4]} 54. Ke1 {[%clk
0:00:08]} 54... Ra2 {[%clk 0:01:16.3]} 55. Rc7 {[%clk 0:00:07.4]} 55... c4
{[%clk 0:01:16.4]} 56. Rc6 {[%clk 0:00:06.4]} 56... Ke5 {[%clk 0:01:16.1]} 57.
Rc5+ {[%clk 0:00:06.5]} 57... Kd4 {[%clk 0:01:16.3]} 58. Rg5 {[%clk 0:00:07.2]}
58... g3 {[%clk 0:01:16.4]} 59. Rg6 {[%clk 0:00:07.2]} 59... Bf5 {[%clk
0:01:16.8]} 60. Rd6+ {[%clk 0:00:07.3]} 60... Ke3 {[%clk 0:01:17.2]} 61. Rd1
{[%clk 0:00:07]} 61... g2 {[%clk 0:01:16.2]} 62. Rd3+ {[%clk 0:00:06.4]} 62...
cxd3 {[%clk 0:01:17.1]} 63. Kd1 {[%clk 0:00:04.9]} 63... Rd2+ {[%clk 0:01:15.8]}
64. Kc1 {[%clk 0:00:04]} 64... Re2 {[%clk 0:01:16.7]} 65. Kb1 {[%clk 0:00:03.1]}
65... g1=Q# {[%clk 0:01:17.6]} 0-1

[Event "Early-Titled-Tuesday-Blitz-August-29-2023"]
[Site "Chess.com"]
[Date "2023.08.29"]
[Round "1"]
[White "slidingknight2775"]
[Black "ChesscularGodofchess"]
[Result "1-0"]
[WhiteElo "2580"]
[BlackElo "2183"]
[TimeControl "180+1"]
[EndTime "8:07:37 PDT"]
[Termination "slidingknight2775 won by checkmate"]

1. d4 {[%clk 0:03:00.3]} 1... d6 {[%clk 0:02:57.8]} 2. Nf3 {[%clk 0:02:58.1]}
2... Nf6 {[%clk 0:02:57.3]} 3. g3 {[%clk 0:02:58.2]} 3... g6 {[%clk 0:02:56.2]}
4. Bg2 {[%clk 0:02:58.4]} 4... Bg7 {[%clk 0:02:56.3]} 5. O-O {[%clk 0:02:58.4]}
5... O-O {[%clk 0:02:56.3]} 6. a4 {[%clk 0:02:58.9]} 6... d5 {[%clk 0:02:54.5]}
7. a5 {[%clk 0:02:56.7]} 7... c6 {[%clk 0:02:53.2]} 8. c3 {[%clk 0:02:46.6]}
8... a6 {[%clk 0:02:40.8]} 9. Nbd2 {[%clk 0:02:35.4]} 9... Bg4 {[%clk
0:02:40.4]} 10. h3 {[%clk 0:02:34.7]} 10... Bf5 {[%clk 0:02:37]} 11. Qb3 {[%clk
0:02:32.7]} 11... Qc8 {[%clk 0:02:32.5]} 12. Kh2 {[%clk 0:02:32.5]} 12... Nbd7
{[%clk 0:02:26.5]} 13. Nh4 {[%clk 0:02:22.7]} 13... Ne4 {[%clk 0:02:02.2]} 14.
Nxf5 {[%clk 0:02:18.4]} 14... gxf5 {[%clk 0:02:03.1]} 15. Nf3 {[%clk 0:02:11.6]}
15... Kh8 {[%clk 0:01:53.1]} 16. c4 {[%clk 0:02:06]} 16... e6 {[%clk 0:01:48.7]}
17. Be3 {[%clk 0:01:57.2]} 17... f6 {[%clk 0:01:33.7]} 18. Rfc1 {[%clk
0:01:40.3]} 18... Qb8 {[%clk 0:01:33.6]} 19. Kg1 {[%clk 0:01:39]} 19... b6
{[%clk 0:01:10.3]} 20. cxd5 {[%clk 0:01:03]} 20... cxd5 {[%clk 0:01:00.2]} 21.
Rc6 {[%clk 0:00:58]} 21... bxa5 {[%clk 0:00:44.2]} 22. Qxb8 {[%clk 0:00:30.2]}
22... Rfxb8 {[%clk 0:00:45.1]} 23. Rxe6 {[%clk 0:00:30.4]} 23... Rxb2 {[%clk
0:00:45.3]} 24. Bf1 {[%clk 0:00:26.8]} 24... Nb6 {[%clk 0:00:37.1]} 25. Nh4
{[%clk 0:00:19.1]} 25... Nc4 {[%clk 0:00:33.3]} 26. Bc1 {[%clk 0:00:18.5]} 26...
Rb6 {[%clk 0:00:24.9]} 27. Rxb6 {[%clk 0:00:17.8]} 27... Nxb6 {[%clk 0:00:25.8]}
28. Rxa5 {[%clk 0:00:17]} 28... Bf8 {[%clk 0:00:21.6]} 29. Nxf5 {[%clk
0:00:16.5]} 29... Bb4 {[%clk 0:00:20.6]} 30. Ra2 {[%clk 0:00:16.6]} 30... a5
{[%clk 0:00:20.9]} 31. Ba3 {[%clk 0:00:14.9]} 31... Nc4 {[%clk 0:00:20.8]} 32.
Bxb4 {[%clk 0:00:14.7]} 32... Ra7 {[%clk 0:00:19.4]} 33. Bc5 {[%clk 0:00:14.6]}
33... Kg8 {[%clk 0:00:19.9]} 34. Bxa7 {[%clk 0:00:14.7]} 34... Kf7 {[%clk
0:00:20.2]} 35. Bc5 {[%clk 0:00:15]} 35... Ke6 {[%clk 0:00:20.6]} 36. Bg2 {[%clk
0:00:15.6]} 36... Kxf5 {[%clk 0:00:20.5]} 37. g4+ {[%clk 0:00:15.2]} 37... Kf4
{[%clk 0:00:20.6]} 38. e3+ {[%clk 0:00:15]} 38... Kg5 {[%clk 0:00:20.5]} 39. Bf1
{[%clk 0:00:14.5]} 39... Nxc5 {[%clk 0:00:20.7]} 40. dxc5 {[%clk 0:00:14.5]}
40... Ne5 {[%clk 0:00:21.6]} 41. Be2 {[%clk 0:00:13.3]} 41... f5 {[%clk
0:00:20.7]} 42. gxf5 {[%clk 0:00:13.4]} 42... Kxf5 {[%clk 0:00:21.6]} 43. Rxa5
{[%clk 0:00:13.8]} 43... Ke4 {[%clk 0:00:21.4]} 44. Ra4+ {[%clk 0:00:13.7]}
44... Kf5 {[%clk 0:00:21.5]} 45. Rf4+ {[%clk 0:00:13.1]} 45... Ke6 {[%clk
0:00:21.2]} 46. Bg4+ {[%clk 0:00:13.7]} 46... Nxg4 {[%clk 0:00:20.7]} 47. hxg4
{[%clk 0:00:14.6]} 47... Kd7 {[%clk 0:00:21.4]} 48. Rf7+ {[%clk 0:00:14.8]}
48... Kc6 {[%clk 0:00:22.3]} 49. Rxh7 {[%clk 0:00:15.7]} 49... Kxc5 {[%clk
0:00:22.6]} 50. Rf7 {[%clk 0:00:15.9]} 50... Kc4 {[%clk 0:00:23.5]} 51. Rf4+
{[%clk 0:00:16.3]} 51... d4 {[%clk 0:00:24.4]} 52. Rxd4+ {[%clk 0:00:16.6]}
52... Kc3 {[%clk 0:00:24.9]} 53. g5 {[%clk 0:00:17.5]} 53... Kc2 {[%clk
0:00:25.8]} 54. g6 {[%clk 0:00:18.4]} 54... Kc1 {[%clk 0:00:26.7]} 55. g7 {[%clk
0:00:19.3]} 55... Kc2 {[%clk 0:00:21.9]} 56. g8=Q {[%clk 0:00:20.2]} 56... Kc1
{[%clk 0:00:22]} 57. Qc8+ {[%clk 0:00:20.5]} 57... Kb2 {[%clk 0:00:22.7]} 58.
Rb4+ {[%clk 0:00:21.2]} 58... Ka1 {[%clk 0:00:23.6]} 59. Qa6# {[%clk 0:00:20.2]}
1-0